[Event "4NCL 2022-2023"]
[Site "Daventry"]
[Date "2023.02.12"]
[Round "6.16"]
[White "Magold, Victor"]
[Black "Varney, Zoe"]
[Result "1/2-1/2"]
[ECO "D41"]
[WhiteElo "2040"]
[BlackElo "1937"]
[Annotator "TA"]
[PlyCount "110"]
[EventDate "2022.10.20"]
[EventType "team-tourn"]
[EventCountry "ENG"]
[SourceTitle "playchess.com"]
[Source "ChessBase"]
[SourceQuality "1"]
[TimeControl "40/6000+30:2400+30"]

{[%evp 10,110,43,0,0,0,0,7,-3,-8,0,-17,-10,-17,-14,-17,-8,-28,-25,-44,-6,-20,9,0,6,7,8,7,6,4,6,3,12,14,30,26,20,17,13,18,16,7,18,6,26,4,6,2,40,10,44,44,44,34,34,34,77,82,82,82,75,67,75,0,22,22,718,702,590,488,741,745,864,821,518,0,622,462,859,848,820,814,767,133,133,0,689,0,183,66,483,178,643,590,659,532,525,0,0,0,491,0,394]} 1. d4 {[%emt 0:00:03]} d5 {[%emt 0:00:06]} 2. c4 {[%emt 0:00:04]} e6 {[%emt 0:00:05]} 3. Nf3 {[%emt 0:00:14]} Nf6 {[%emt 0:00:07]} 4. Nc3 {[%emt 0:00:08]} c5 {[%emt 0:00:22]} 5. cxd5 {[%emt 0:00:10]} Nxd5 {[%emt 0:00:20]} 6. Nxd5 {[%emt 0:07:11]} Qxd5 {[%emt 0:00:13] D41: Queen's Gambit Declined: Semi-Tarrasch with 5 cxd5.} 7. Be3 {[%emt 0:11:10]} cxd4 {[%emt 0:07:22]} 8. Qxd4 {[%emt 0:00:12]} Qxd4 {[%emt 0:01:46]} 9. Bxd4 {[%emt 0:01:17]} Bb4+ {[%emt 0:06:58][%cal Bf8b4,Bb4a5,Ba5c7][%mdl 32] [#]} 10. Kd1 $146 {[%emt 0:05:12]} ({Predecessor:} 10. Nd2 O-O 11. Rc1 Nc6 12. Bc3 Bd7 13. e3 Rac8 14. Bd3 Ne5 15. Be4 Bxc3 16. Rxc3 Rxc3 17. bxc3 {½-½ Tillyaev,U (2325)-Csonka,B (2483) Titled Tuesday intern op 09th Nov blitz 2021 (10)}) 10... O-O {[%emt 0:02:22]} 11. a3 {[%emt 0:00:01]} Ba5 {[%emt 0:37:07]} 12. b4 {[%emt 0:07:59]} Rd8 {[%emt 0:01:21]} 13. Kc2 {[%emt 0:00:14]} (13. bxa5 $5 e5 14. Nxe5 Rxd4+ 15. Ke1 $11) 13... Bc7 {[%emt 0:08:26]} 14. e3 {[%emt 0:14:49]} Nc6 {[%emt 0:02:27][%cal Bb8c6,Bc6e7,Be7d5][%mdl 32]} 15. Bc3 {[%emt 0:00:06]} b6 {[%emt 0:03:35]} 16. Be2 {[%emt 0:07:14]} Bb7 {[%emt 0:02:46]} 17. Rhd1 {[%emt 0:06:11]} Ne7 {[%emt 0:02:15]} 18. Rxd8+ {[%emt 0:14:07]} Rxd8 {[%emt 0:31:52]} 19. Rd1 {[%emt 0:00:38]} Rxd1 {[%emt 0:00:00]} 20. Kxd1 {[%emt 0:00:04]} Be4 {[%emt 0:00:00]} 21. g3 {[%emt 0:01:55]} Nd5 {[%emt 0:00:00]} 22. Bb2 {[%emt 0:00:57]} Nf6 {[%emt 0:00:00]} 23. Nd2 {[%emt 0:01:32] Bxf6 would be deadly.} Bb7 {[%emt 0:00:00]} 24. Kc2 {[%emt 0:14:12]} Kf8 {[%emt 0:00:00]} 25. f3 {[%emt 0:09:27]} Ke7 {[%emt 0:00:00]} 26. e4 {[%emt 0:00:28]} g6 {[%emt 0:00:00]} 27. Bd3 {[%emt 0:03:04]} h5 {[%emt 0:00:00]} 28. e5 {[%emt 0:02:32]} Nd5 {[%emt 0:00:10]} 29. Be4 {[%emt 0:00:12]} Ne3+ {[%emt 0:03:34]} 30. Kd3 {[%emt 0:00:06]} Bxe4+ {[%emt 0:00:25]} 31. Kxe4 $14 {[%emt 0:00:21][%mdl 4096] Endgame KBN-KBN} Nd5 {[%emt 0:00:33]} 32. b5 {[%emt 0:00:23]} f5+ {[%emt 0:00:35]} 33. exf6+ {[%emt 0:01:09]} Nxf6+ {[%emt 0:00:05]} 34. Bxf6+ {[%emt 0:01:17]} Kxf6 $16 {[%emt 0:00:01] KB-KN} 35. Nf1 {[%emt 0:00:59]} g5 {[%emt 0:01:15]} 36. h3 {[%emt 0:00:27]} (36. Nd2 $16) 36... Bd6 {[%emt 0:01:13]} 37. a4 {[%emt 0:00:06]} h4 $2 {[%emt 0:00:29][%mdl 8192]} (37... Be5 $11) 38. gxh4 $18 {[%emt 0:00:06]} gxh4 {[%emt 0:00:35]} 39. Ne3 {[%emt 0:00:04]} Bg3 {[%emt 0:00:58]} (39... Ke7 $142 40. Nc4 Bc5) 40. f4 {[%emt 0:01:16]} Be1 {[%emt 0:00:33]} 41. Ng2 {[%emt 0:42:05]} Bg3 {[%emt 0:02:40]} 42. Ne3 {[%emt 0:00:00]} Be1 $1 {[%emt 0:04:14]} 43. Nc4 {[%emt 0:00:00]} Ke7 {[%emt 0:04:05] [#]} (43... Bg3 $142 44. Nd6 Bh2) 44. Kf3 $1 {[%emt 0:00:00]} Kd7 {[%emt 0:06:54]} 45. Kg4 {[%emt 0:00:00]} Ke7 {[%emt 0:11:25]} 46. Kg5 $2 {[%emt 0:00:00]} (46. Ne3 $18 Bc3 47. Ng2) 46... Bg3 {[%emt 0:01:59]} 47. Kg4 $2 {[%emt 0:00:00][%mdl 8192]} (47. Nd2 $16) 47... Be1 $1 {[%emt 0:05:33]} 48. Kf3 $2 {[%emt 0:00:00]} (48. Ne5 Kf6 49. Nf3) 48... Kd7 {[%emt 0:00:33]} 49. Ke3 {[%emt 0:00:00]} (49. Ne3 $18) 49... Ke7 $2 {[%emt 0:00:54][%mdl 8192]} ({Better is} 49... Bc3 $1 $14) 50. Ke2 $2 {[%emt 0:00:00]} (50. Nd2 Kd7 51. Ke2) 50... Bg3 $2 {[%emt 0:01:22]} (50... Bb4 51. Kf3 Bc3) 51. Kf3 {[%emt 0:00:00]} Be1 {[%emt 0:00:19] [#]} 52. Kg4 $1 {[%emt 0:00:00]} Kd7 {[%emt 0:00:52]} 53. Kh5 $2 {[%emt 0:00:00]} (53. Ne5+ $18 Kd6 54. Nf3) 53... Bg3 $11 {[%emt 0:01:26]} 54. Kg5 $2 {[%emt 0:00:00][%mdl 8192]} (54. Ne5+ $11 Kd6 55. Ng6) 54... Ke7 $18 {[%emt 0:00:37]} 55. Kg4 {[%emt 0:00:00]} Be1 $1 {[%emt 0:05:11][%mdl 32768] Weighted Error Value: White=0.82/Black=0.43. An unexpected result.} 1/2-1/2

[Event "4NCL 2022-2023"]
[Site "Daventry"]
[Date "2023.02.12"]
[Round "6.17"]
[White "Chow, Samuel"]
[Black "Makkar, Rajat"]
[Result "1-0"]
[ECO "E92"]
[WhiteElo "2308"]
[BlackElo "2426"]
[Annotator "TA"]
[PlyCount "137"]
[EventDate "2022.10.20"]
[EventType "team-tourn"]
[EventCountry "ENG"]
[SourceTitle "playchess.com"]
[Source "ChessBase"]
[SourceQuality "1"]
[TimeControl "40/6000+30:2400+30"]

{[%evp 19,137,50,48,46,46,46,39,54,28,25,26,28,49,15,20,-8,-3,-26,-12,-60,-7,-31,-26,-23,0,-27,-19,-49,-49,-49,-49,-56,-68,-158,-163,-157,-165,-152,-104,-104,-103,-111,-103,-103,-97,-148,-114,-103,-98,-99,-69,-114,-69,-69,-69,-69,-69,-69,-69,-69,-69,-79,-17,-15,0,-44,-62,-58,-48,-48,-10,-5,-17,-357,-368,-481,-468,-422,-59,-59,-60,-59,0,0,0,-226,-172,-148,0,0,0,-179,-37,-47,-28,-193,-30,-935,0,0,0,0,0,0,0,0,0,0,0,0,0,0,1479,1251,1473,1413,1172,1102,770,736]} 1. d4 {[%emt 0:00:07]} Nf6 {[%emt 0:00:45]} 2. c4 {[%emt 0:00:40]} g6 {[%emt 0:00:07]} 3. Nc3 {[%emt 0:01:50]} Bg7 {[%emt 0:00:18]} 4. e4 {[%emt 0:01:06]} d6 {[%emt 0:00:17]} 5. Nf3 {[%emt 0:00:21]} O-O {[%emt 0:00:16]} 6. Be2 {[%emt 0:00:22]} e5 {[%emt 0:00:32]} 7. Be3 {[%emt 0:00:44]} Ng4 {[%emt 0:00:45]} 8. Bg5 {[%emt 0:01:17]} f6 {[%emt 0:00:22]} 9. Bh4 {[%emt 0:00:25]} Nc6 {[%emt 0:01:23] 9...Nc6 is better than 9...g5.} 10. d5 {[%emt 0:00:22]} Ne7 {[%emt 0:00:14]} 11. h3 {[%emt 0:02:11] E92: King's Indian: Classical: 6 Be2 e5: 7 dxe5, 7 Be3 and Petrosian System without 7...Nbd7.} Nh6 {[%emt 0:00:40]} 12. g4 {[%emt 0:00:35]} Nf7 {[%emt 0:11:31]} 13. Nd2 {[%emt 0:02:31] White is slightly better.} c6 {[%emt 0:06:52] [#]} 14. Qb3 $146 {[%emt 0:02:03]} ({Predecessor:} 14. f3 cxd5 15. cxd5 Bd7 16. a4 a6 17. a5 Nc8 18. Qb3 Qc7 19. Nc4 Rb8 20. Bf2 {0-1 Stukan,M (2169)-Ajay,K (2298) Moscow Aeroflot op-B 18th 2019 (7)}) 14... a6 {[%emt 0:03:26]} 15. a4 {[%emt 0:06:02]} Qa5 {[%emt 0:05:33]} 16. O-O {[%emt 0:02:43]} c5 {[%emt 0:12:33]} 17. f3 {[%emt 0:07:11]} Qc7 {[%emt 0:04:14]} 18. Kg2 {[%emt 0:02:21]} Bh6 {[%emt 0:01:00]} 19. Qc2 {[%emt 0:04:37]} (19. Rad1 $11) 19... f5 {[%emt 0:11:15]} (19... Kg7 $15) 20. Bd3 {[%emt 0:06:19]} fxg4 {[%emt 0:00:37]} 21. hxg4 {[%emt 0:02:24]} Bf4 {[%emt 0:02:13]} 22. Ne2 {[%emt 0:01:47]} g5 {[%emt 0:01:02]} 23. Nxf4 {[%emt 0:09:02]} gxh4 {[%emt 0:04:02]} 24. Nh5 {[%emt 0:05:17]} (24. Ne6 $2 Bxe6 25. dxe6 Ng5 $19) 24... Ng6 {[%emt 0:01:45]} (24... Ng5 {is more complex.} 25. Qc3 Ng6 26. Be2 b6) 25. Be2 {[%emt 0:01:11]} (25. Nf6+ Kh8 26. Nh5 Ng5 $17) 25... Ng5 {[%emt 0:00:57]} 26. Nb3 {[%emt 0:05:28]} (26. Qc3 $15) 26... Nf4+ $17 {[%emt 0:07:53]} 27. Nxf4 {[%emt 0:00:16]} Rxf4 {[%emt 0:00:05]} 28. Nc1 {[%emt 0:45:18]} Qg7 {[%emt 0:02:32]} (28... Bxg4 $142 $1 29. fxg4 Rxf1 30. Bxf1 (30. Kxf1 $2 Qf7+ 31. Kg1 Qf4 $19) 30... Qf7) 29. Nd3 {[%emt 0:00:00]} Rf7 {[%emt 0:00:36]} 30. Kh1 {[%emt 0:00:00]} Bd7 {[%emt 0:01:52]} 31. Qd2 {[%emt 0:00:00]} a5 {[%emt 0:14:53]} 32. b3 {[%emt 0:00:00]} ({Better is} 32. Qe3) 32... Kh8 {[%emt 0:01:20]} 33. Qe3 {[%emt 0:00:00]} Raf8 {[%emt 0:02:22]} 34. Rf2 {[%emt 0:00:00]} Qg6 {[%emt 0:04:42]} 35. Raf1 {[%emt 0:00:00]} b6 {[%emt 0:02:16]} 36. Kh2 {[%emt 0:00:00]} Bc8 {[%emt 0:00:49]} 37. Bd1 {[%emt 0:00:00]} Rf6 {[%emt 0:01:34]} 38. Be2 {[%emt 0:00:00]} R8f7 {[%emt 0:01:43]} 39. Bd1 {[%emt 0:00:00]} Kg8 {[%emt 0:01:01]} 40. Ne1 {[%emt 0:00:00]} Kf8 {[%emt 0:01:52]} ({Black should play} 40... Qg7 $17) 41. Ng2 $1 $11 {[%emt 0:00:00]} Qh6 {[%emt 0:00:00]} 42. Qe1 {[%emt 0:00:00]} h3 {[%emt 0:00:01]} 43. Ne3 {[%emt 0:00:00]} Rf4 {[%emt 0:00:29]} 44. Nf5 {[%emt 0:04:08] Against Qh4} Bxf5 {[%emt 0:00:31]} 45. gxf5 {[%emt 0:00:48]} Rg7 {[%emt 0:01:25]} (45... Qh4 $5 46. Re2 $8 Qh6 $11) 46. Rc2 $2 {[%emt 0:04:06][%mdl 8192]} (46. Rg1 $11 {and White is okay.}) 46... Qh5 $19 {[%emt 0:04:52][%cal Rg5f3]} 47. Rc3 {[%emt 0:00:50]} Nf7 $1 {[%emt 0:04:34]} 48. Rc2 {[%emt 0:09:21] Prevents Rg2+. White is weak on the dark squares} Qh6 $2 {[%emt 0:05:04]} (48... Rh4 $1 $19 49. Qe3 Rg2+ 50. Kh1 (50. Rxg2 hxg2+ 51. Kxg2 Rh2+ 52. Kg1 Qh3) 50... Ng5) 49. Rg1 $1 $15 {[%emt 0:02:49]} Rxg1 {[%emt 0:01:47]} 50. Qxg1 {[%emt 0:00:58]} Ng5 {[%emt 0:00:38]} (50... Rh4 $15) 51. Rc3 {[%emt 0:01:51]} Qh5 {[%emt 0:00:44]} 52. Qf1 $2 {[%emt 0:01:13]} (52. Re3 $11) 52... Qh4 $1 $36 {[%emt 0:01:55][%mdl 2048] White is under strong pressure.} 53. Bc2 {[%emt 0:02:12]} Qg4 {[%emt 0:01:18][%cal Rf4f3]} 54. Bd1 {[%emt 0:01:08]} (54. fxg4 $2 Rxf1 55. Kg3 Rc1 $19) 54... Qh4 {[%emt 0:02:54]} 55. Bc2 {[%emt 0:00:11]} h5 {[%emt 0:00:10]} ({Black should try} 55... Rxf5 $1 $19 {White must now prevent ...Qf4+.} 56. exf5 Qf4+ 57. Kh1 Qd2) 56. Qe2 $1 $15 {[%emt 0:07:50]} Nh7 $1 {[%emt 0:00:34] And now ...Nf6 would win.} 57. Qe3 $2 {[%emt 0:02:05] [#]} (57. Kh1 $2 Qg3 58. Re3 h4 $19) (57. Bd1 $1 $11 {and White has nothing to worry.}) 57... Nf6 $2 {[%emt 0:00:53]} ({Stronger than} 57... Ng5 58. Bd1 $11) (57... Qg5 $1 $19 {[%csl Gh3][%cal Rg5g2]} 58. Qe2 (58. Qg1 $2 Rg4 $19) 58... Nf6) 58. Bd3 $2 {[%emt 0:02:29][%mdl 8192] [#]} (58. Bd1 $11) 58... Rxf3 $2 {[%emt 0:03:41]} 59. Qxf3 $11 {[%emt 0:01:01]} Ng4+ {[%emt 0:00:09]} 60. Kh1 $1 {[%emt 0:01:24] Rc2 would be deadly.} Nf2+ {[%emt 0:00:07]} 61. Kh2 {[%emt 0:00:11] Hoping for Rc2.} Ng4+ {[%emt 0:00:29]} 62. Kh1 $1 {[%emt 0:00:14] Threatens to win with Rc2.} Qe1+ {[%emt 0:07:33]} 63. Bf1 {[%emt 0:00:10]} Qd2 {[%emt 0:01:15][%csl Gg4][%cal Rd2h2] Wards off Rc2} 64. Qg3 {[%emt 0:03:42] Against Qh2+} (64. Qxh3 $2 {perishes.} Nf2+ 65. Kg1 Nxh3+ 66. Rxh3 Qd4+ 67. Kg2 Qxe4+ 68. Kf2 Qd4+ 69. Re3 Ke7 $19) 64... Nf2+ {[%emt 0:03:37]} 65. Kg1 {[%emt 0:00:08]} h2+ $2 {[%emt 0:00:57][%mdl 8192]} (65... Qd4 $11 66. Kh2 Qd2) 66. Qxh2 $18 {[%emt 0:00:26] White is clearly winning.} Qxc3 {[%emt 0:00:05]} 67. Qxf2 {[%emt 0:01:20]} Qxb3 {[%emt 0:00:05]} 68. Qd2 {[%emt 0:00:49] aiming for Qh6+.} Qg3+ {[%emt 0:01:06]} 69. Bg2 {[%emt 0:00:44] Both players deserved the win here.   Weighted Error Value: White=0.35/Black=0.31} 1-0

[Event "4NCL 2022-2023"]
[Site "Daventry"]
[Date "2023.02.12"]
[Round "6.18"]
[White "Roberson, Peter T"]
[Black "Wall, Tim P"]
[Result "1-0"]
[ECO "B06"]
[WhiteElo "2426"]
[BlackElo "2239"]
[Annotator "TA"]
[PlyCount "81"]
[EventDate "2022.10.20"]
[EventType "team-tourn"]
[EventCountry "ENG"]
[SourceTitle "playchess.com"]
[Source "ChessBase"]
[SourceQuality "1"]
[TimeControl "40/6000+30:2400+30"]

{[%evp 9,81,25,64,51,66,50,48,50,61,61,62,46,41,28,48,13,19,9,10,-45,-27,-83,-72,-83,-62,-66,-68,-129,-100,-105,-107,-129,-105,-157,-132,-239,-214,-213,-207,-171,-166,-206,-204,-397,-360,-568,-515,-451,-287,-402,-404,-546,-529,-1158,-391,-404,-400,-390,-141,-127,-147,-151,-101,-105,-110,-230,-213,-201,-156,-155,101,81,169,110]} 1. e4 {[%emt 0:00:02]} g6 {[%emt 0:14:12]} 2. d4 {[%emt 0:00:35]} Bg7 {[%emt 0:00:58]} 3. Nc3 {[%emt 0:01:12]} d6 {[%emt 0:00:33]} 4. Be3 {[%emt 0:00:45]} a6 {[%emt 0:00:13]} 5. h4 {[%emt 0:01:18]} h6 {[%emt 0:01:25]} 6. Qd2 {[%emt 0:02:51] White is more active. B06: Modern Defence.} b5 {[%emt 0:06:54]} 7. O-O-O {[%emt 0:04:54]} Bb7 {[%emt 0:00:27]} 8. f3 {[%emt 0:00:13] White is slightly better.} Nd7 {[%emt 0:00:35]} 9. g4 {[%emt 0:02:00]} Ngf6 {[%emt 0:02:27] was the old line (9...Rc8).} 10. Nh3 {[%emt 0:05:27]} Nb6 {[%emt 0:00:43]} 11. a3 {[%emt 0:03:29]} Nfd7 {[%emt 0:01:23]} 12. Kb1 {[%emt 0:08:59]} c5 {[%emt 0:00:39]} 13. dxc5 {[%emt 0:11:00]} dxc5 {[%emt 0:00:39] [#]} 14. Nf4 $146 {[%emt 0:08:20]} (14. Nf2 $11) ({Predecessor:} 14. Be2 Qc7 15. Nf2 O-O-O 16. Bxb5 Nb8 17. Nd3 Bxc3 18. Qxc3 axb5 19. Qxc5 Nc4 20. Qxc7+ Kxc7 {½-½ Sarenac,I (2388)-Popovic,D (2518) SRB-chT Valjevo 2018 (10.5)}) 14... e6 $15 {[%emt 0:05:34]} 15. Qe1 {[%emt 0:24:09]} (15. Qd6 $11 Rc8 16. Na2) 15... Rc8 {[%emt 0:05:48]} 16. Nd3 {[%emt 0:06:22][%cal Od3c5]} Qe7 {[%emt 0:05:54]} 17. Nc1 {[%emt 0:04:54]} Ne5 $1 {[%emt 0:06:25]} 18. Be2 {[%emt 0:12:04]} (18. Nb3 $15) 18... Nec4 {[%emt 0:03:23]} 19. Bxc4 {[%emt 0:00:28]} Nxc4 {[%emt 0:00:17]} 20. Nd3 {[%emt 0:01:30]} O-O {[%emt 0:10:08]} 21. Bc1 {[%emt 0:00:13]} ({White should try} 21. g5) 21... b4 {[%emt 0:06:51]} 22. axb4 {[%emt 0:04:22]} cxb4 {[%emt 0:00:09]} 23. Na4 {[%emt 0:01:34]} a5 {[%emt 0:01:33]} 24. Qf2 {[%emt 0:01:12]} Qc7 {[%emt 0:09:43]} 25. g5 {[%emt 0:02:36]} h5 $1 {[%emt 0:00:47] ...Bc6 would be deadly.} 26. Nac5 $2 {[%emt 0:00:29]} (26. Qc5 {was worth a try.}) 26... a4 $19 {[%emt 0:05:49]} 27. Nxa4 {[%emt 0:01:58]} (27. b3 {keeps fighting.} axb3 28. cxb3) 27... Ra8 {[%emt 0:00:46]} 28. b3 {[%emt 0:00:52]} Ra5 {[%emt 0:15:04] Against Qc5} 29. e5 {[%emt 0:00:37]} (29. Bb2 $142 Nxb2 30. Ndxb2) 29... Bc6 {[%emt 0:01:26]} ({Stronger than} 29... Nxe5 30. Bb2 $17) ({Not} 29... Bxe5 30. Nxe5 Nxe5 31. Bf4 $15) 30. f4 {[%emt 0:00:20]} Bxa4 {[%emt 0:00:36]} 31. bxa4 {[%emt 0:00:18]} Rxa4 $2 {[%emt 0:00:11]} (31... Qc6 32. Nb2 Na3+ {[%mdl 64] Deflection} 33. Ka2 Nb5) 32. Qc5 {[%emt 0:00:29] [#]} Rfa8 $1 {[%emt 0:00:54][%csl Ga8][%cal Ra4a1]} 33. Bb2 {[%emt 0:00:01] [#] Prevents Ra1+.} Nxb2 $2 {[%emt 0:00:55]} 34. Qxc7 $17 {[%emt 0:00:52]} Nxd1 {[%emt 0:01:09][%csl Ga8][%cal Ra4a1]} 35. Kc1 {[%emt 0:01:00]} Ne3 {[%emt 0:01:03]} ({Black should play} 35... Nc3 {And now ...Ra1+ would win.} 36. Kd2 Nd5) 36. Kd2 {[%emt 0:00:14]} Nd5 {[%emt 0:00:24]} 37. Qb7 {[%emt 0:00:44]} (37. Qc4 $17 {was necessary.}) 37... Bf8 $19 {[%emt 0:00:36]} 38. f5 {[%emt 0:00:27]} R8a7 {[%emt 0:01:13]} 39. Qb8 {[%emt 0:00:29] Strongly threatening fxe6.} exf5 {[%emt 0:00:39] [#]} (39... gxf5 $17 {and life is bright. White must now prevent ...Ra8.} 40. Rb1 Ra8) 40. e6 $1 $16 {[%emt 0:00:24][%mdl 64] Re1 is the strong threat. Decoy. Really sharp!} fxe6 {[%emt 0:00:48]} (40... Ra2 $16 {is a better defense.}) 41. Qe8 $1 {[%emt 0:07:25][%csl LRe6,LRg6] Weighted Error Value: White=0.46/Black=0.49} 1-0

[Event "4NCL 2022-2023"]
[Site "Daventry"]
[Date "2023.02.12"]
[Round "6.19"]
[White "Walton, Alan J"]
[Black "Moreby, James"]
[Result "0-1"]
[ECO "D31"]
[WhiteElo "2089"]
[BlackElo "2353"]
[Annotator "TA"]
[PlyCount "64"]
[EventDate "2022.10.20"]
[EventType "team-tourn"]
[EventCountry "ENG"]
[SourceTitle "playchess.com"]
[Source "ChessBase"]
[SourceQuality "1"]
[TimeControl "40/6000+30:2400+30"]

{[%evp 15,64,0,0,-41,-52,-36,-37,-90,-65,-412,-397,-447,-455,-459,-461,-440,-443,-438,-450,-443,-421,-722,-564,-905,-351,-356,-303,-318,-241,-223,-195,-218,-179,-183,-181,-249,-231,-242,-244,-248,-241,-246,-251,-346,-343,-449,-445,-513,-503,-904,-894]} 1. d4 {[%emt 0:00:05]} d5 {[%emt 0:07:42]} 2. c4 {[%emt 0:01:00]} e6 {[%emt 0:00:34]} 3. Nc3 {[%emt 0:01:27]} c6 {[%emt 0:01:58]} 4. e4 {[%emt 0:00:46]} dxe4 {[%emt 0:00:08]} 5. Nxe4 {[%emt 0:00:12]} Bb4+ {[%emt 0:00:05]} 6. Bd2 {[%emt 0:00:32][%cal Bc1d2,Bd2b4,Bb4f8][%mdl 32]} Qxd4 {[%emt 0:01:21]} 7. Bxb4 {[%emt 0:01:56]} Qxe4+ {[%emt 0:00:20]} 8. Be2 {[%emt 0:01:33]} Na6 $1 {[%emt 0:00:39]} 9. Bf8 {[%emt 0:09:57][%mdl 64] Threatens to win with Qd6. Decoy, Back Rank. D31: Queen's Gambit Declined: Semi-Slav without ...Nf6 (+ Marshall Gambit and Noteboom) and Exchange Variation lines without ...Nf6.} Qxg2 {[%emt 0:00:38]} (9... Kxf8 $2 10. Qd8#) 10. Qd6 $1 {[%emt 0:19:09]} Bd7 $1 {[%emt 0:00:58]} (10... Qxh1 $2 11. O-O-O $18 (11. Bxg7 $2 Qxg1+ 12. Bf1 Qxg7 $19) (11. Bxg7 $2 Qxg1+ 12. Bf1 Qxg7 $19)) 11. O-O-O {[%emt 0:01:13]} O-O-O $17 {[%emt 0:07:35] [#] Hoping for ...Nh6.} 12. Qd4 $146 {[%emt 1:08:40][%mdl 8192]} ({Predecessor:} 12. Nf3 Nh6 13. Be7 Nf5 14. Qa3 Nxe7 15. Qxe7 Qxf2 16. Rhe1 Qe3+ 17. Kb1 Qe4+ 18. Ka1 {0-1 Gebhardt,D-Butler,K IECC CL4-1996.05 email}) 12... e5 $19 {[%emt 1:24:32][%cal Be6e5,Be5e4][%mdl 32]} (12... Qxh1 13. Bxg7 c5 14. Qd6 $17) (12... Rxf8 $2 13. Qxd7+ Kb8 14. Qd6+ Ka8 15. Qxf8+ $18) 13. Qd2 {[%emt 0:00:30]} Nf6 {[%emt 0:00:30]} (13... Qxh1 $2 14. Bxg7 Qxh2 15. Bxh8 $17) (13... Rxf8 $2 14. Qxd7+ Kb8 15. Qd6+ Ka8 16. Qxf8+ $18) 14. Bf3 {[%emt 0:00:30] [#]} Qg6 {[%emt 0:00:30]} 15. Be7 {[%emt 0:00:30] [#]} e4 $1 {[%emt 0:00:30]} 16. Bxd8 {[%emt 0:00:00]} Rxd8 {[%emt 0:00:00]} 17. Be2 {[%emt 0:00:00][%cal Og1h3]} Qg2 {[%emt 0:00:00][%csl LRf2,LRh1] Inhibits Nh3.} 18. c5 {[%emt 0:00:00]} (18. Nh3 $142 Qxh3 19. Qe3) 18... Nc7 {[%emt 0:00:00]} 19. Qa5 {[%emt 0:00:00]} Kb8 $2 {[%emt 0:00:00] Active counter play! White is weak on the light squares} (19... Qxh1 20. Qa3 Qxh2) 20. Qc3 {[%emt 0:00:00]} Qxf2 {[%emt 0:00:00]} (20... Qxh1 $2 {loses.} 21. Qg3 h5 22. Nf3 exf3 23. Rxh1 fxe2 24. Qd3 $19) 21. Qg3 {[%emt 0:00:00]} Qxg3 {[%emt 0:00:00]} 22. hxg3 {[%emt 0:00:00]} Ne6 {[%emt 0:00:00]} 23. Nh3 {[%emt 0:00:00]} h6 {[%emt 0:00:00]} 24. b4 {[%emt 0:00:00]} Nd5 {[%emt 0:00:00]} 25. a3 {[%emt 0:00:00]} (25. Bc4 {keeps fighting.}) 25... Nc3 {[%emt 0:00:00][%csl LRd1,LRe2]} 26. Rde1 {[%emt 0:00:00]} Nd4 {[%emt 0:00:00]} 27. Bc4 {[%emt 0:00:00]} Bxh3 {[%emt 0:00:00]} 28. Rxh3 {[%emt 0:00:00][%cal Oe1e3]} f5 {[%emt 0:00:00] And now ...Nf3 would win.} 29. Kb2 {[%emt 0:00:00]} Nf3 {[%emt 0:00:00] aiming for ...Na4+.} 30. Rc1 {[%emt 0:00:00]} Nd1+ {[%emt 0:00:00] Black is clearly winning.} 31. Ka1 {[%emt 0:00:00]} Ne3 {[%emt 0:00:00]} 32. Be6 {[%emt 0:00:33]} (32. Bb3 $142 Rd3 33. Kb2) 32... Ng5 {[%emt 0:00:00][%csl LRe6,LRh3] Black took control after the opening. A cool game by Moreby.   Weighted Error Value: White=1.03/Black=0.37} 0-1